bitfinex/quotes_SOLUSD_20250209
["timestamp","ask_amount","ask_price","bid_price","bid_amount"]
[1739114064792,13.41184853,200.84,200.82,8.92486343]
[1739114064958,13.41184853,200.84,200.81,8.92486343]
[1739114065158,13.41184853,200.84,200.8,8.92486343]
[1739114065371,13.41184853,200.82,200.79,8.92486343]
[1739114066768,49.4,200.81,200.79,8.92486343]
[1739114067161,62.81184853,200.8,200.79,8.92486343]
[1739114067357,62.81184853,200.8,200.78,8.92486343]
[1739114067679,62.81184853,200.8,200.77,8.92486343]
[1739114069293,62.81184853,200.8,200.78,8.92486343]
[1739114069664,62.81184853,200.8,200.78,5.71547]
[1739114069864,62.81184853,200.8,200.77,5.71547]
[1739114070575,49.4,200.79,200.77,5.71547]
[1739114070771,49.4,200.78,200.77,5.71547]
[1739114071772,62.81184853,200.78,200.77,5.71547]
[1739114072585,49.4,200.78,200.77,5.71547]
[1739114074861,62.81184853,200.78,200.77,5.71547]
[1739114075274,13.41184853,200.78,200.76,0.063]
[1739114075475,149.22731853,200.77,200.76,0.063]
[1739114078102,152.71381853,200.77,200.76,0.063]
[1739114078804,22.61381853,200.77,200.76,0.063]
[1739114085011,15.41184853,200.74,200.73,0.063]
[1739114085210,21.12731853,200.74,200.73,0.063]
[1739114085500,13.41184853,200.73,200.72,0.063]
[1739114085681,19.12731853,200.73,200.72,0.063]
[1739114085881,20.70311853,200.73,200.72,0.063]
[1739114086819,24.19031853,200.73,200.72,0.063]
[1739114086992,20.70311853,200.73,200.72,0.063]
[1739114087321,24.19031853,200.73,200.72,0.063]
[1739114088315,5.71547,200.76,200.72,0.063]
[1739114088602,4.4867,200.77,200.72,0.063]
[1739114089282,13.41184853,200.76,200.72,0.063]
[1739114089483,14.41184853,200.76,200.72,0.063]
[1739114091181,13.41184853,200.76,200.72,0.063]
[1739114091521,13.41184853,200.74,200.73,5.71547]
[1739114093744,13.41184853,200.74,200.72,5.77847]
[1739114096345,13.41184853,200.74,200.73,5.71547]
[1739114097737,13.41184853,200.75,200.73,5.71547]
[1739114097930,13.41184853,200.75,200.72,5.77847]
[1739114100134,13.41184853,200.75,200.74,5.71547]
[1739114102342,13.41184853,200.75,200.73,5.71547]
[1739114103218,143.51184853,200.74,200.73,5.71547]
[1739114106841,143.51184853,200.74,200.72,5.77847]
[1739114107064,143.51184853,200.74,200.73,5.71547]
[1739114108631,143.51184853,200.74,200.72,5.77847]
[1739114109045,143.51184853,200.74,200.73,5.71547]
[1739114109244,0.03,200.77,200.73,5.71547]
[1739114109419,0.03,200.77,200.72,0.063]
[1739114109741,5.74547,200.77,200.72,0.063]
[1739114110153,33.41184853,200.73,200.72,0.063]
[1739114110362,39.12731853,200.73,200.72,0.063]
[1739114111449,40.12731853,200.73,200.72,0.063]
[1739114112237,43.61451853,200.73,200.72,0.063]
[1739114112547,73.54451853,200.73,200.72,0.063]
[1739114112941,31.93,200.71,200.7,0.025]
[1739114113128,51.05731853,200.71,200.7,0.025]
[1739114113545,135.512,200.68,200.66,0.063]
[1739114113832,49.312,200.67,200.66,0.063]
[1739114114031,62.72384853,200.67,200.66,0.063]
[1739114115132,68.43931853,200.67,200.66,0.063]
[1739114115331,62.72384853,200.67,200.66,0.063]
[1739114115531,62.72384853,200.67,200.66,5.77847]
[1739114115532,13.41184853,200.67,200.66,5.77847]
[1739114116631,13.41184853,200.67,200.66,0.063]
[1739114118252,16.90014853,200.67,200.66,0.063]
[1739114118663,17.90014853,200.67,200.66,0.063]
[1739114119536,13.41184853,200.67,200.66,0.063]
[1739114119733,13.41184853,200.67,200.66,5.77847]
[1739114119950,13.41184853,200.67,200.66,0.063]
[1739114122755,16.90014853,200.67,200.66,0.063]
[1739114122962,13.41184853,200.67,200.66,0.063]
[1739114123139,13.41184853,200.67,200.66,5.77847]
[1739114123340,6.74547,200.75,200.66,5.77847]
[1739114123537,11.23237,200.75,200.68,5.71547]
[1739114123737,11.23237,200.75,200.66,0.063]
[1739114123738,19.12731853,200.74,200.67,5.71547]
[1739114124136,19.12731853,200.72,200.66,0.063]
[1739114124337,13.41184853,200.7,200.66,0.063]
[1739114125063,5.71547,200.74,200.67,5.71547]
[1739114125564,13.41184853,200.73,200.69,5.71547]
[1739114125774,0.03,200.75,200.71,5.71547]
[1739114126234,0.03,200.75,200.67,6.3317]
[1739114126235,0.03,200.75,200.74,5.71547]
[1739114126641,0.03,200.75,200.69,5.71547]
[1739114126943,13.41184853,200.74,200.68,5.71547]
[1739114127146,13.41184853,200.73,200.67,12.04717]
[1739114127748,13.41184853,200.73,200.67,6.3317]
[1739114127749,19.12731853,200.73,200.67,6.3317]
[1739114128143,13.41184853,200.71,200.67,6.3317]
[1739114128742,19.12731853,200.69,200.66,0.063]
[1739114128941,13.41184853,200.67,200.66,0.063]
[1739114132279,13.41184853,200.67,200.66,5.77847]
[1739114132871,13.41184853,200.72,200.66,5.77847]
[1739114133075,130.1,200.71,200.7,5.71547]
[1739114133280,80.7,200.71,200.7,5.71547]
[1739114133477,80.7,200.71,200.7,28.57735]
[1739114133669,80.7,200.76,200.7,34.90905]
[1739114133863,80.7,200.76,200.74,5.71547]
[1739114134481,13.44184853,200.75,200.74,5.71547]
[1739114134958,13.44184853,200.75,200.73,5.71547]
[1739114135279,13.44184853,200.75,200.72,5.71547]
[1739114135472,13.44184853,200.75,200.71,5.71547]
[1739114135779,13.44184853,200.75,200.7,15.26810519]
[1739114135977,13.44184853,200.75,200.7,6.3317]
[1739114136274,13.44184853,200.75,200.66,8.99940519]
[1739114136275,22.34825372,200.73,200.66,8.99940519]
[1739114136459,13.41184853,200.71,200.66,0.063]
[1739114136660,13.41184853,200.71,200.66,8.99940519]
[1739114136864,13.41184853,200.69,200.66,8.99940519]
[1739114137083,13.41184853,200.67,200.66,0.063]
[1739114138792,13.41184853,200.69,200.66,0.063]
[1739114139293,33.41184853,200.67,200.66,0.063]
[1739114143285,13.41184853,200.67,200.66,0.063]
[1739114144273,33.41184853,200.67,200.66,0.063]
[1739114149587,42.34825372,200.67,200.66,0.063]
[1739114150073,33.41184853,200.67,200.66,0.063]
[1739114150273,42.34825372,200.67,200.66,0.063]
[1739114150789,22.34825372,200.67,200.66,0.063]
[1739114152684,13.41184853,200.67,200.66,0.063]
[1739114154890,20.0,200.64,200.63,16.28982802]
[1739114155081,20.0,200.64,200.5,0.74778803]
[1739114155082,1.0,200.53,200.49,0.063]
[1739114155287,33.41184853,200.46,200.45,5.063]
[1739114155789,3.88,200.54,200.45,5.063]
[1739114156094,13.41184853,200.54,200.48,8.93640519]
[1739114156273,13.41184853,200.54,200.49,8.93640519]
[1739114156473,13.41184853,200.5,200.49,8.93640519]
[1739114156979,13.41184853,200.5,200.48,8.93640519]
[1739114157897,13.41184853,200.5,200.46,8.93640519]
[1739114159376,13.41184853,200.5,200.47,8.93640519]
[1739114159680,13.41184853,200.48,200.47,8.93640519]
[1739114159978,13.41184853,200.5,200.47,8.93640519]
[1739114160186,13.41184853,200.5,200.48,8.93640519]
[1739114160369,13.41184853,200.5,200.49,8.93640519]
[1739114160982,13.41184853,200.51,200.49,8.93640519]
[1739114161179,4.94887758,200.61,200.5,17.87281038]
[1739114161470,4.94887758,200.61,200.55,8.93640519]
[1739114161774,13.41184853,200.6,200.55,8.93640519]
[1739114162991,13.41184853,200.61,200.55,8.93640519]
[1739114163188,13.41184853,200.61,200.57,8.93640519]
[1739114163388,8.93640519,200.66,200.59,8.93640519]
[1739114163769,43.81528277,200.68,200.61,8.93640519]
[1739114164474,4.94887758,200.68,200.64,8.93640519]
[1739114164675,4.94887758,200.68,200.65,8.93640519]
[1739114164877,49.4,200.67,200.65,8.93640519]
[1739114165079,13.41184853,200.66,200.62,6.3079]
[1739114165291,130.1,200.67,200.65,8.93640519]
[1739114165469,130.1,200.67,200.66,8.93640519]
[1739114166098,143.51184853,200.67,200.66,8.93640519]
[1739114166597,143.51184853,200.67,200.65,8.93640519]
[1739114167597,49.4,200.66,200.65,8.93640519]
[1739114168707,13.41184853,200.65,200.62,15.24430519]
[1739114168888,13.41184853,200.65,200.62,6.3079]
[1739114170018,130.1,200.64,200.58,8.93640519]
[1739114170306,13.41184853,200.63,200.61,8.93640519]
[1739114170501,0.03,200.69,200.62,8.93640519]
[1739114170813,80.7,200.62,200.57,6.3079]
[1739114171107,130.1,200.61,200.57,6.3079]
[1739114171301,130.1,200.61,200.6,8.93640519]
[1739114171881,130.1,200.64,200.6,8.93640519]
[1739114172088,130.1,200.64,200.63,8.93640519]
[1739114172304,0.03,200.69,200.63,8.93640519]
[1739114172610,0.03,200.69,200.6,8.93640519]
[1739114172611,49.4,200.68,200.6,8.93640519]
[1739114173307,49.4,200.67,200.6,8.93640519]
[1739114173704,0.03,200.66,200.6,8.93640519]
[1739114173904,0.03,200.66,200.65,8.93640519]
[1739114176506,0.03,200.66,200.63,8.93640519]
[1739114176706,0.03,200.66,200.62,8.93640519]
[1739114178824,13.41184853,200.64,200.59,8.93640519]
[1739114178989,13.41184853,200.62,200.57,15.24430519]
[1739114179328,13.41184853,200.62,200.58,8.93640519]
[1739114180702,13.41184853,200.6,200.55,8.93640519]
[1739114181214,13.41184853,200.58,200.55,8.93640519]
[1739114181517,13.41184853,200.56,200.54,8.93640519]
[1739114181721,13.41184853,200.56,200.53,8.93640519]
[1739114181900,13.41184853,200.54,200.52,6.2598]
[1739114182093,13.41184853,200.54,200.49,8.99940519]
[1739114182318,13.41184853,200.52,200.5,8.93640519]
[1739114182698,130.1,200.51,200.5,8.93640519]
[1739114182918,80.7,200.51,200.5,8.93640519]
[1739114183304,80.7,200.51,200.49,8.99940519]
[1739114183717,80.7,200.51,200.49,0.063]
[1739114183912,94.11184853,200.5,200.49,0.063]
[1739114184303,13.41184853,200.54,200.49,0.063]
[1739114184500,22.34825372,200.54,200.49,0.063]
[1739114184917,13.41184853,200.54,200.49,0.063]
[1739114186031,22.34825372,200.54,200.49,0.063]
[1739114186323,8.93640519,200.52,200.49,0.063]
[1739114186704,22.34825372,200.52,200.49,0.063]
[1739114187214,62.81184853,200.51,200.49,0.063]
[1739114192538,143.51184853,200.5,200.49,0.063]
[1739114192711,152.44825372,200.5,200.49,0.063]
[1739114193616,25.83945372,200.5,200.49,0.063]
[1739114193806,22.34825372,200.5,200.49,0.063]
[1739114194008,13.41184853,200.5,200.49,0.063]
[1739114195528,22.34825372,200.5,200.49,0.063]
[1739114196621,25.83945372,200.5,200.49,0.063]
[1739114197221,34.77585891,200.5,200.49,0.063]
[1739114197822,35.77585891,200.5,200.49,0.063]
[1739114198321,33.41184853,200.46,200.45,5.063]
[1739114198510,42.34825372,200.46,200.45,5.063]
[1739114201821,45.84015372,200.46,200.45,5.063]
[1739114202131,42.34825372,200.46,200.45,5.063]
[1739114202837,45.84015372,200.46,200.45,5.063]
[1739114204245,129.474,200.44,200.43,0.063]
[1739114204627,142.88584853,200.44,200.43,0.063]
[1739114204829,151.82225372,200.44,200.43,0.063]
[1739114205852,142.88584853,200.44,200.43,0.063]
[1739114210351,13.41184853,200.44,200.43,0.063]
[1739114213126,25.84055372,200.44,200.43,0.063]
[1739114213331,22.34825372,200.44,200.43,0.063]
[1739114213545,13.41184853,200.44,200.43,0.063]
[1739114217139,13.41184853,200.44,200.43,8.99940519]
[1739114217341,8.96640519,200.51,200.43,8.99940519]
[1739114217342,0.03,200.51,200.43,8.99940519]
[1739114217540,0.03,200.51,200.46,8.93640519]
[1739114217847,0.03,200.51,200.45,8.93640519]
[1739114218040,8.96640519,200.51,200.44,8.93640519]
[1739114218260,94.11184853,200.5,200.44,8.93640519]
[1739114219964,103.04825372,200.5,200.43,15.18130519]
[1739114220859,94.11184853,200.5,200.46,8.93640519]
[1739114221057,80.7,200.49,200.47,8.93640519]
[1739114221255,125.5,200.49,200.47,8.93640519]
[1739114222364,125.5,200.48,200.44,1.6276]
[1739114222562,125.5,200.48,200.47,8.93640519]
[1739114225053,0.03,200.5,200.47,17.87281038]
[1739114225253,0.03,200.5,200.49,24.05471038]
[1739114226063,80.7,200.55,200.5,1.6276]
[1739114226371,4.9,200.54,200.5,10.56400519]
[1739114226549,4.9,200.54,200.53,8.93640519]
[1739114228260,18.31184853,200.54,200.5,10.56400519]
[1739114228472,13.41184853,200.53,200.5,1.6276]
[1739114229145,13.41184853,200.53,200.49,6.1819]
[1739114229351,13.41184853,200.53,200.51,8.93640519]
[1739114229967,99.01184853,200.52,200.51,8.93640519]
[1739114230171,99.01184853,200.52,200.5,8.93640519]
[1739114230381,99.01184853,200.52,200.51,8.93640519]
[1739114230860,99.01184853,200.51,200.49,15.11830519]
[1739114231066,99.01184853,200.51,200.46,8.93640519]
[1739114231250,13.41184853,200.49,200.44,15.11830519]
[1739114231455,13.41184853,200.47,200.44,15.11830519]
[1739114231658,13.41184853,200.45,200.43,0.063]
[1739114231974,99.01184853,200.44,200.43,0.063]
[1739114232178,13.41184853,200.44,200.43,0.063]
[1739114234581,22.34825372,200.44,200.43,0.063]
[1739114235986,13.41184853,200.44,200.43,0.063]
[1739114237967,4.91322907,200.48,200.43,8.99940519]
[1739114238171,4.91322907,200.48,200.47,8.93640519]
[1739114239563,4.91322907,200.48,200.47,14.32735027]
[1739114240379,0.03,200.5,200.47,14.32735027]
[1739114241068,0.03,200.5,200.49,14.32735027]
[1739114254294,0.03,200.5,200.49,28.65470054]
[1739114254500,0.03,200.51,200.49,28.65470054]
[1739114254679,85.6,200.58,200.5,30.65470054]
[1739114254873,85.6,200.57,200.5,16.32735027]
[1739114255374,85.6,200.57,200.56,14.32735027]
[1739114255575,13.41184853,200.59,200.56,14.32735027]
[1739114255798,13.41184853,200.62,200.58,14.32735027]
[1739114255996,13.41184853,200.6,200.58,14.32735027]
[1739114256195,13.41184853,200.6,200.57,14.32735027]
[1739114257197,13.41184853,200.6,200.58,14.32735027]
[1739114258699,13.41184853,200.6,200.56,14.32735027]
[1739114258883,27.7391988,200.6,200.53,14.32735027]
[1739114259077,85.6,200.59,200.53,14.32735027]
[1739114259677,85.6,200.59,200.54,14.32735027]
[1739114261290,85.6,200.59,200.53,14.32735027]
[1739114261484,99.01184853,200.58,200.51,14.32735027]
[1739114261792,8.95557645,200.56,200.49,0.063]
[1739114261996,22.36742498,200.54,200.49,0.063]
[1739114262204,99.01184853,200.53,200.49,0.063]
[1739114264301,13.41184853,200.51,200.49,0.063]
[1739114264889,22.36742498,200.51,200.49,0.063]
[1739114265088,107.96742498,200.5,200.49,0.063]
[1739114265689,22.36742498,200.5,200.49,0.063]
[1739114267211,25.85862498,200.5,200.49,0.063]
[1739114273104,13.41184853,200.5,200.49,0.063]
[1739114273507,18.3250776,200.5,200.49,0.063]
[1739114274898,13.41184853,200.5,200.49,0.063]
[1739114276988,13.41184853,200.5,200.49,9.01857645]
[1739114277916,13.41184853,200.5,200.49,0.063]
[1739114279527,25.85862498,200.5,200.49,0.063]
[1739114280839,22.36742498,200.5,200.49,0.063]
[1739114281133,13.41184853,200.5,200.49,0.063]
[1739114283018,25.85862498,200.5,200.49,0.063]
[1739114284027,13.41184853,200.5,200.49,0.063]
[1739114286033,13.41184853,200.5,200.49,9.01857645]
[1739114286239,0.03,200.51,200.49,9.01857645]
[1739114286450,0.03,200.51,200.5,8.95557645]
[1739114289376,0.03,200.51,200.5,17.9111529]
[1739114290541,4.91322907,200.56,200.5,17.9111529]
[1739114290739,4.91322907,200.56,200.55,8.95557645]
[1739114291575,80.7,200.57,200.55,8.95557645]
[1739114291772,80.7,200.57,200.56,8.95557645]
[1739114292234,94.11184853,200.57,200.55,8.95557645]
[1739114292439,13.41184853,200.56,200.53,8.95557645]
[1739114292640,13.41184853,200.56,200.54,8.95557645]
[1739114292840,13.41184853,200.56,200.55,8.95557645]
[1739114293759,13.41184853,200.56,200.54,8.95557645]
[1739114294153,13.41184853,200.56,200.52,8.95557645]
[1739114294461,8.95557645,200.59,200.51,8.95557645]
[1739114294462,13.41184853,200.54,200.51,8.95557645]
[1739114296278,13.41184853,200.52,200.49,9.01857645]
[1739114296570,85.6,200.51,200.49,9.01857645]
[1739114297863,85.6,200.5,200.49,9.01857645]
[1739114300569,99.01184853,200.5,200.49,9.01857645]
[1739114300757,99.01184853,200.5,200.49,0.063]
[1739114302354,13.41184853,200.5,200.49,0.063]
[1739114303277,13.41184853,200.5,200.49,9.01857645]
[1739114303954,20.0,200.54,200.49,9.01857645]
[1739114304152,85.6,200.56,200.51,8.95557645]
[1739114304354,85.6,200.56,200.52,8.95557645]
[1739114305463,13.41184853,200.55,200.51,8.95557645]
[1739114306381,13.41184853,200.55,200.52,8.95557645]
[1739114306689,0.03,200.54,200.52,8.95557645]
[1739114306890,0.03,200.54,200.53,8.95557645]
[1739114310360,0.03,200.57,200.56,20.0]
[1739114310684,85.6,200.6,200.56,28.95557645]
[1739114310881,85.6,200.6,200.59,8.95557645]
[1739114316287,13.41184853,200.65,200.59,8.95557645]
[1739114316585,13.41184853,200.63,200.58,8.95557645]
[1739114316769,13.41184853,200.63,200.57,8.95557645]
[1739114317993,13.41184853,200.63,200.56,8.95557645]
[1739114317994,22.36742498,200.63,200.56,8.95557645]
[1739114318387,13.41184853,200.63,200.56,8.95557645]
[1739114318580,13.41184853,200.63,200.58,8.95557645]
[1739114318893,13.41184853,200.63,200.6,8.95557645]
[1739114319584,13.44184853,200.63,200.6,8.95557645]
[1739114319787,13.44184853,200.63,200.58,8.95557645]
[1739114320178,13.41184853,200.61,200.58,8.95557645]
[1739114320378,80.7,200.59,200.58,8.95557645]
[1739114320579,13.41184853,200.61,200.58,8.95557645]
[1739114321597,13.41184853,200.61,200.58,8.68886245]
[1739114321890,0.03,200.63,200.56,9.01857645]
[1739114321891,20.0,200.62,200.56,9.01857645]
[1739114322493,20.0,200.62,200.58,8.95557645]
[1739114322701,20.0,200.62,200.59,8.95557645]
[1739114322915,0.03,200.63,200.61,8.95557645]
[1739114323072,0.03,200.63,200.62,8.95557645]
[1739114326192,0.03,200.63,200.61,8.95557645]
[1739114327070,0.03,200.63,200.6,8.95557645]
[1739114327468,0.03,200.63,200.62,8.95557645]
[1739114334605,0.03,200.63,200.61,8.95557645]
[1739114334790,0.03,200.63,200.58,0.063]
[1739114334791,0.03,200.63,200.59,8.95557645]
[1739114335097,0.03,200.63,200.61,8.95557645]
[1739114335307,0.03,200.63,200.62,8.95557645]
[1739114340305,0.03,200.63,200.61,8.95557645]
[1739114340487,0.03,200.63,200.6,8.95557645]
[1739114340683,0.03,200.63,200.61,8.95557645]
[1739114340889,0.03,200.63,200.62,8.95557645]
[1739114343193,0.03,200.63,200.62,15.24357645]
[1739114343418,0.03,200.66,200.62,15.24357645]
[1739114343613,0.03,200.66,200.65,8.95557645]
[1739114346908,4.93,200.66,200.65,8.95557645]
[1739114347105,85.6,200.65,200.63,8.95557645]
[1739114347306,0.03,200.66,200.6,1.5718]
[1739114347307,85.6,200.64,200.6,8.95557645]
[1739114348415,85.6,200.63,200.6,8.95557645]
[1739114348591,85.6,200.62,200.6,8.95557645]
[1739114349802,85.6,200.62,200.61,8.95557645]
[1739114350701,13.41184853,200.62,200.6,8.95557645]
[1739114351021,13.41184853,200.61,200.6,8.95557645]
[1739114351601,0.03,200.66,200.6,17.9111529]
[1739114351798,0.03,200.66,200.65,8.95557645]
[1739114354233,0.03,200.66,200.65,15.24357645]
[1739114356028,0.03,200.66,200.65,8.95557645]
[1739114361413,0.03,200.66,200.65,10.95557645]
[1739114373637,0.03,200.69,200.68,20.0]
[1739114373843,0.03,200.69,200.68,28.95557645]
[1739114374638,0.03,200.69,200.68,38.9111529]
[1739114374844,0.03,200.69,200.68,39.65832333]
[1739114375253,0.03,200.75,200.71,8.95557645]
[1739114375421,0.03,200.75,200.74,8.95557645]
[1739114383769,0.03,200.75,200.74,5.71478134]
[1739114392287,0.03,200.75,200.74,6.71478134]
[1739114392472,0.03,200.75,200.74,7.71478134]
[1739114401976,80.73,200.8,200.77,20.0]
[1739114402178,0.03,200.8,200.79,5.71478134]
[1739114404687,0.03,200.84,200.82,20.0]
[1739114404854,0.03,200.84,200.83,5.71478134]
[1739114406177,0.03,200.84,200.82,5.71478134]
[1739114408469,0.03,200.84,200.81,5.71478134]
[1739114410594,0.03,200.84,200.79,5.71478134]
[1739114411088,0.03,200.84,200.8,5.71478134]
[1739114411387,0.03,200.84,200.78,5.71478134]
[1739114411388,19.87814853,200.84,200.78,5.71478134]
[1739114411912,19.87814853,200.84,200.79,5.71478134]
[1739114412882,19.87814853,200.84,200.78,5.71478134]
[1739114413058,19.87814853,200.84,200.79,5.71478134]
[1739114413468,85.6,200.83,200.78,5.71478134]
[1739114413671,13.41184853,200.8,200.74,5.77778134]
[1739114413978,85.6,200.79,200.74,5.77778134]
[1739114414184,85.6,200.79,200.75,5.71478134]
[1739114415368,85.6,200.79,200.77,5.71478134]
[1739114415576,85.6,200.79,200.78,5.71478134]
[1739114416870,85.6,200.79,200.77,5.71478134]
[1739114417064,85.6,200.79,200.75,5.71478134]
[1739114417279,85.6,200.79,200.74,5.77778134]
[1739114417478,85.6,200.79,200.74,0.063]
[1739114418088,85.6,200.79,200.74,5.77778134]
[1739114418293,4.9,200.78,200.74,5.77778134]
[1739114418996,85.6,200.77,200.74,0.063]
[1739114421678,85.6,200.77,200.74,5.77778134]
[1739114424193,80.7,200.77,200.74,5.77778134]
[1739114429978,80.7,200.77,200.76,5.71478134]
[1739114430179,4.9,200.78,200.76,5.71478134]
[1739114430396,4.9,200.78,200.77,5.71478134]
[1739114434236,4.9,200.78,200.75,5.71478134]
[1739114434424,4.9,200.78,200.74,5.77778134]
[1739114434922,4.9,200.78,200.75,5.71478134]
[1739114435108,4.9,200.78,200.77,5.71478134]
[1739114436130,0.03,200.79,200.77,5.71478134]
[1739114436339,0.03,200.79,200.78,5.71478134]
[1739114437232,83.33,200.82,200.78,5.71478134]
[1739114437415,83.33,200.82,200.79,5.71478134]
[1739114437734,78.43,200.82,200.79,5.71478134]
[1739114438630,78.43,200.82,200.78,5.71478134]
[1739114438829,13.41184853,200.81,200.76,5.71478134]
[1739114439815,78.43,200.82,200.79,5.71478134]
[1739114440012,78.43,200.82,200.81,5.71478134]
[1739114442242,2.9,200.83,200.81,5.71478134]
[1739114442536,2.9,200.83,200.82,5.71478134]
[1739114443840,2.9,200.83,200.8,5.71478134]
[1739114444432,2.9,200.83,200.81,5.71478134]
[1739114445245,0.03,200.84,200.81,5.71478134]
[1739114445445,0.03,200.84,200.8,5.71478134]
[1739114445749,0.03,200.84,200.78,5.71478134]
[1739114445925,0.03,200.84,200.79,5.71478134]
[1739114447826,0.03,200.84,200.8,5.71478134]
[1739114448046,0.03,200.84,200.78,5.71478134]
[1739114448245,19.15662987,200.84,200.76,5.71478134]
[1739114448849,19.12662987,200.82,200.75,5.71478134]
[1739114449146,19.12662987,200.82,200.74,0.063]
[1739114449147,19.12662987,200.82,200.74,5.77778134]
[1739114449340,81.33,200.81,200.74,5.77778134]
[1739114449722,81.33,200.81,200.75,5.71478134]
[1739114450046,81.33,200.81,200.77,5.71478134]
[1739114451134,81.33,200.81,200.8,5.71478134]
[1739114451332,78.43,200.81,200.8,5.71478134]
[1739114452025,0.03,200.84,200.8,5.71478134]
[1739114452234,0.03,200.84,200.83,5.71478134]
[1739114452948,0.03,200.84,200.82,5.71478134]
[1739114453725,0.03,200.84,200.82,8.92678543]
[1739114455049,0.03,200.84,200.83,8.92678543]
[1739114455930,0.03,200.84,200.82,8.92678543]
[1739114456642,0.03,200.84,200.8,8.92678543]
[1739114457641,0.03,200.84,200.79,8.92678543]
[1739114458157,0.03,200.84,200.8,8.92678543]
[1739114458457,0.03,200.84,200.79,8.92678543]
[1739114458656,0.03,200.84,200.78,8.98978543]
[1739114459034,2.43,200.85,200.81,8.92678543]
[1739114459348,2.43,200.85,200.83,8.92678543]
[1739114459656,2.43,200.85,200.82,8.92678543]
[1739114459851,2.43,200.85,200.83,8.92678543]
[1739114461037,2.43,200.85,200.82,8.92678543]
[1739114462239,2.43,200.85,200.84,8.92678543]
[1739114462844,0.03,200.86,200.84,8.92678543]
[1739114463057,0.03,200.86,200.83,8.92678543]
[1739114463364,0.03,200.86,200.82,8.92678543]
[1739114464052,0.03,200.86,200.84,8.92678543]
[1739114467355,0.03,200.86,200.83,8.92678543]
[1739114468852,0.03,200.86,200.82,8.92678543]
[1739114469051,0.03,200.86,200.81,8.92678543]
[1739114470656,2.97553455,200.85,200.81,8.92678543]
[1739114472167,0.03,200.86,200.82,8.92678543]
[1739114473662,0.03,200.86,200.82,5.71301819]
[1739114474744,1.96,200.86,200.82,5.71301819]
[1739114475769,2.97661272,200.85,200.82,5.71301819]
[1739114476977,1.96,200.86,200.82,5.71301819]
[1739114477973,1.96,200.86,200.81,5.71301819]
[1739114478272,1.96,200.86,200.82,0.063]
[1739114479074,13.41184853,200.85,200.82,0.063]
[1739114480276,2.97796258,200.84,200.82,0.063]
[1739114480664,4.90796258,200.84,200.82,0.063]
[1739114480868,13.41184853,200.83,200.82,0.063]
[1739114482075,16.38981111,200.83,200.82,0.063]
[1739114483280,2.97796258,200.83,200.82,0.063]
[1739114484079,2.97796258,200.83,200.82,5.77601819]
[1739114484878,1.93,200.84,200.82,5.77601819]
[1739114485074,1.93,200.84,200.83,5.71301819]
[1739114486667,0.03,200.86,200.83,5.71301819]
[1739114486867,0.03,200.86,200.84,5.71301819]
[1739114488379,0.03,200.86,200.82,0.063]
[1739114488879,13.44184853,200.86,200.82,0.063]
[1739114489671,13.44184853,200.86,200.83,5.71301819]
[1739114489986,7.74821359,200.85,200.83,5.71301819]
[1739114490879,7.74821359,200.85,200.84,5.71301819]
[1739114491591,0.03,200.86,200.84,5.71301819]
[1739114492075,0.03,200.86,200.85,5.71301819]
[1739114492283,0.03,200.86,200.84,5.71301819]
[1739114493384,0.03,200.86,200.85,5.71301819]
[1739114496063,0.03,200.86,200.83,5.71301819]
[1739114496259,0.03,200.86,200.84,5.71301819]
[1739114496466,0.03,200.86,200.85,5.71301819]
[1739114498485,0.03,200.86,200.84,5.71301819]
[1739114498873,0.03,200.86,200.85,5.71301819]
[1739114507995,0.03,200.89,200.86,1.6068]
[1739114508172,0.03,200.89,200.88,25.71301819]
[1739114509268,0.03,200.89,200.88,38.91407006]
[1739114509476,0.03,200.89,200.88,69.46497316]